Cogmind - Beta 13 @@@ ROGUE MODE // 2024.04.30 @ 19:08:13 Player: Fusha Result: Destroyed by G-34 Mercenary with Small Laser Performance ------------- Evolutions (1) 500 Regions Visited (3) 600 Robots Destroyed (2) 10 Value Destroyed (53) 53 Prototype IDs (0) 0 Alien Tech Used (0) 0 Bonus (0) 0 TOTAL SCORE: 1163 Bonus ------- None Cogmind --------- Core Integrity 0/400 Matter 275/300 Energy 100/100 System Corruption 0% Temperature Cool (12) Movement Core (100) Ox1 Location -9/Materials Parts ------- > --- POWER (1) -------- (None) > --- PROPULSION (4) --- (None) > --- UTILITY (2) ------ (None) > --- WEAPON (2) ------- Great Maul Katana > --- INVENTORY (5) ---- Light Ion Engine High-capacity Matter Pod (38) High-capacity Matter Pod (0) Peak State ------------ > --- POWER ------------ Ion Engine > --- PROPULSION ------- Wheel Wheel Compact Wheel > --- UTILITY ---------- Small Storage Unit Seismic Detector > --- WEAPON ----------- Assault Rifle Light Assault Rifle > --- INVENTORY -------- Light Ion Engine High-capacity Matter Pod High-capacity Matter Pod [Rating: 8] Favorites ----------- Power Ion Engine Engine Ion Engine Propulsion Aluminum Leg Leg Aluminum Leg Wheel Wheel Utility Small Storage Unit Device Seismic Detector Storage Small Storage Unit Weapon Assault Rifle Ballistic Gun Assault Rifle Impact Weapon Great Maul Slashing Weapon Katana Build | -11 -10 -10 -9 ------- Run | Yrd Mat Min Mat Slots Evolved 2 | . . . 2 Power . | . . . . Propulsion 2 | . . . 2 Utility . | . . . . Weapon . | . . . . Parts Attached 13 | 6 . 3 4 Power 1 | 1 . . . Engine 1 | 1 . . . Core . | . . . . Reactor . | . . . . Propulsion 6 | 2 . 2 2 Treads . | . . . . Leg 3 | 2 . . 1 Wheel 3 | . . 2 1 Hover . | . . . . Flight . | . . . . Utility 2 | 1 . 1 . Device 1 | . . 1 . Storage 1 | 1 . . . Processor . | . . . . Hackware . | . . . . Protection . | . . . . Artifact . | . . . . Weapon 4 | 2 . . 2 Energy Gun . | . . . . Energy Cannon . | . . . . Ballistic Gun 2 | 2 . . . Ballistic Cannon . | . . . . Launcher . | . . . . Special Weapon . | . . . . Impact Weapon 1 | . . . 1 Slashing Weapon 1 | . . . 1 Piercing Weapon . | . . . . Special Melee Weapon . | . . . . Unidentified Prototypes . | . . . . Parts Lost 10 | . . 1 9 Power 1 | . . . 1 Propulsion 5 | . . 1 4 Utility 2 | . . . 2 Weapon 2 | . . . 2 Highest Loss Streak 7 | . . 1 7 To Critical Strikes . | . . . . Average Slot Usage (%) 56 | . 85 87 38 Engine 8 | . 14 14 4 Leg 7 | . 28 11 2 Wheel 10 | . . 14 11 Device 3 | . . 4 2 Storage 10 | . 14 14 8 Ballistic Gun 15 | . 28 28 8 Naked Turns 5 | . . . 5 Heaviest Build 14 | 13 13 14 14 Greatest Support 36 | 20 20 26 36 Greatest Overweight (x) 3 | . . 1 3 Average Overweight (x) . | . . . . Largest Inventory Capacity 8 | 8 8 8 8 Average Capacity 7 | 7 8 8 7 Most Carried 4 | 1 3 4 4 Average Carried 2 | . 1 3 3 Final Capacity 8 | 8 8 8 5 Final Carried 4 | 1 3 4 3 Class Distribution -------------------- 75% | Mutant 25% | Scavenger-Mutant Dominant Class ---------------- Mutant | -10/Materials Mutant | -10/Mines Mutant | -9/Materials Resources | -11 -10 -10 -9 ----------- Run | Yrd Mat Min Mat Matter Collected 334 | 236 . 38 60 Remotely . | . . . . Salvage Created 122 | 62 . . 60 Parts 5 | 2 . . 3 Haulers Intercepted . | . . . . Recyclers Shooed . | . . . . Parts Field Recycled . | . . . . Retrieved Matter . | . . . . Parts Self-Destructed . | . . . . Prevented . | . . . . Kills | -11 -10 -10 -9 ------- Run | Yrd Mat Min Mat Combat Hostiles Destroyed 1 | . . . 1 Melee 1 | . . . 1 Classes Destroyed 2 | 1 . . 1 Recycler 1 | 1 . . . Duelist 1 | . . . 1 Best Kill Streak 1 | 1 . . 1 Combat Bots Only 1 | . . . 1 Max Kills in Single Turn 1 | 1 . . 1 Gunslinging . | . . . . Exploded . | . . . . Melee 1 | . . . 1 Uniques/NPCs Destroyed . | . . . . Combat | -11 -10 -10 -9 -------- Run | Yrd Mat Min Mat Hostile Shots Fired 63 | . . 7 56 Missed 9 | . . . 9 Damage Taken 1124 | . . 316 808 Core 479 | . . 74 405 Absorbed by Shields . | . . . . Core Remaining (%) 85 | 100 . 70 . Volleys Fired 13 | 3 . 2 8 Largest 2 | 2 . 2 2 Hottest 40 | 40 . 40 40 Shots Fired 22 | 6 . 4 12 Gun 22 | 6 . 4 12 Cannon . | . . . . Launcher . | . . . . Special . | . . . . Kinetic 22 | 6 . 4 12 Thermal . | . . . . Explosive . | . . . . Electromagnetic . | . . . . Robot Hit Streak 3 | 3 . 3 2 Robot Miss Streak 2 | 1 . 1 2 Penetration Max . | . . . . Secondary Targets . | . . . . Shots Hit Robots 15 | 5 . 3 7 Core Hits 8 | 2 . 3 3 Critical Kills . | . . . . Critical Parts Destroyed . | . . . . Critical Strikes . | . . . . Melee Attacks 3 | . . . 3 Impact 2 | . . . 2 Slashing 1 | . . . 1 Piercing . | . . . . Sneak Attacks . | . . . . Combat Hostiles . | . . . . Follow-up Attacks 1 | . . . 1 Damage Inflicted 202 | 46 . 40 116 Guns 157 | 46 . 40 71 Cannons . | . . . . Explosions . | . . . . Melee 33 | . . . 33 Ramming 12 | . . . 12 Kinetic 157 | 46 . 40 71 Thermal . | . . . . Explosive . | . . . . Electromagnetic . | . . . . Impact 33 | . . . 33 Slashing . | . . . . Piercing . | . . . . Highest Corruption . | . . . . Average Corruption . | . . . . Corruption Purged . | . . . . Corruption Blocked . | . . . . Overload Shots . | . . . . Overflow Damage . | . . . . Projectiles . | . . . . Explosions . | . . . . Melee . | . . . . Knockbacks 2 | . . . 2 Impact 2 | . . . 2 Kinetic . | . . . . Secondary . | . . . . Self-Inflicted Damage 5 | . . . 5 Shots . | . . . . Rammed 3 | . . . 3 Targets Rammed 3 | . . . 3 Kicked . | . . . . Crushed . | . . . . Highest Temperature . | . . . . Average Temperature . | . . . . Received Heat Transfer 228 | . . . 228 Siege Activations . | . . . . Robots Corrupted . | . . . . Combat Hostiles . | . . . . Parts Fried . | . . . . Impact Corruptions . | . . . . Robots Melted . | . . . . Combat Hostiles . | . . . . Parts Melted . | . . . . Heat Transferred . | . . . . Parts Sabotaged . | . . . . Parts Stolen . | . . . . Parts Stripped . | . . . . Power Chain Reactions . | . . . . Alert | -11 -10 -10 -9 ------- Run | Yrd Mat Min Mat Peak Influence 30 | 5 3 . 30 Initial 3 | . 3 . . Average 4 | 2 3 . 6 Maximum Alert Level . | . . . . Low Security (%) 100 | 100 100 100 100 Level 1 . | . . . . Level 2 . | . . . . Level 3 . | . . . . Level 4 . | . . . . Level 5 . | . . . . High Security . | . . . . Max Security . | . . . . Squads Dispatched . | . . . . Investigation . | . . . . Extermination . | . . . . Reinforcement . | . . . . Assault . | . . . . Garrison . | . . . . Intercept . | . . . . Searches Triggered . | . . . . Construction Impeded . | . . . . Haulers Reinforced . | . . . . Active Scanning Responses . | . . . . Cargo Convoy Interrupts . | . . . . Stealth | -11 -10 -10 -9 --------- Run | Yrd Mat Min Mat Distress Signals . | . . . . Communications Jammed . | . . . . Distress Signals . | . . . . Times Spotted 5 | . . 2 3 Peak Tracking Total 3 | . . 2 3 Tactical Retreats . | . . . . Traps | -11 -10 -10 -9 ------- Run | Yrd Mat Min Mat Traps Triggered 3 | . . . 3 Indirectly . | . . . . Trap Hack Attempts . | . . . . Triggered . | . . . . Disarmed . | . . . . Reprogrammed . | . . . . Reused . | . . . . Traps Extracted . | . . . . Installed . | . . . . Triggered . | . . . . Machines | -11 -10 -10 -9 ---------- Run | Yrd Mat Min Mat Machines Disabled . | . . . . Max in Single Turn . | . . . . Machines Repaired . | . . . . Machines Dismantled . | . . . . Machines Sabotaged . | . . . . Overloaded Fab Kills . | . . . . Hacking | -11 -10 -10 -9 --------- Run | Yrd Mat Min Mat Machines Accessed . | . . . . Terminals . | . . . . Fabricators . | . . . . Repair Stations . | . . . . Recycling Units . | . . . . Scanalyzers . | . . . . Garrison Access . | . . . . Total Hacks . | . . . . Successful . | . . . . Failed . | . . . . Catastrophic . | . . . . Database Lockouts . | . . . . Manual . | . . . . Terminals . | . . . . Fabricators . | . . . . Repair Stations . | . . . . Recycling Units . | . . . . Scanalyzers . | . . . . Garrison Access . | . . . . Terminal Hacks . | . . . . Fabricator Hacks . | . . . . Repair Station Hacks . | . . . . Recycling Unit Hacks . | . . . . Scanalyzer . | . . . . Garrison Access Hacks . | . . . . Unauthorized Hacks . | . . . . Terminals . | . . . . Fabricators . | . . . . Repair Stations . | . . . . Recycling Units . | . . . . Scanalyzers . | . . . . Garrison Access . | . . . . Data Cores Recovered . | . . . . Used . | . . . . Hacking Detections . | . . . . Full Trace Events . | . . . . Feedback Events . | . . . . Feedback Blocked . | . . . . Robot Schematics Acquired . | . . . . Robots Built . | . . . . Authchips . | . . . . Time . | . . . . Total Robot Build Rating . | . . . . Part Schematics Acquired . | . . . . Parts Built . | . . . . Authchips . | . . . . Time . | . . . . Total Part Build Rating . | . . . . Parts Repaired . | . . . . Time . | . . . . Parts Recycled . | . . . . Recycled Matter . | . . . . Retrieved Matter . | . . . . Retrieved Components . | . . . . Parts Scanalyzed . | . . . . Part Schematics Acquired . | . . . . Parts Damaged . | . . . . Bothacking | -11 -10 -10 -9 ------------ Run | Yrd Mat Min Mat Used RIF Installer . | . . . . Robots Hacked . | . . . . Non-combat . | . . . . Combat . | . . . . Robot Hacks Applied . | . . . . Relay Couplers Released . | . . . . Fabnet Peak Effective % . | . . . . Robots Rewired . | . . . . Allies Hacked . | . . . . Hacks Repelled . | . . . . Allies | -11 -10 -10 -9 -------- Run | Yrd Mat Min Mat Total Allies . | . . . . Largest Group . | . . . . Highest-Rated Group . | . . . . Highest-Rated Ally . | . . . . Total Orders . | . . . . Ally Attacks . | . . . . Total Damage . | . . . . Kills . | . . . . Allies Corrupted . | . . . . Allies Melted . | . . . . Intel | -11 -10 -10 -9 ------- Run | Yrd Mat Min Mat Robot Analysis Total . | . . . . Derelict Logs Recovered . | . . . . Drone Launches . | . . . . Drone Recoveries . | . . . . Exploration | -11 -10 -10 -9 ------------- Run | Yrd Mat Min Mat Turns Passed 306 | 66 25 60 155 Spaces Moved 206 | 41 20 45 100 Core 51 | 3 . . 48 Treads . | . . . . Legs 98 | 38 20 21 19 Wheels 57 | . . 24 33 Hover . | . . . . Flight . | . . . . Fastest Speed 50 | 50 120 90 50 Average Speed 107 | 114 120 108 101 Slowest Speed 200 | 120 120 190 200 Overloaded Moves . | . . . . Propulsion Burnouts . | . . . . Robots Hopped . | . . . . Cave-ins Triggered . | . . . . Exploration Rate (%) 10 | 4 10 17 10 Regions Visited 3 Branch Regions 1 Pre-discovered Areas . | . . . . Known Exits Taken . | . . . . Unknown Exits Taken 3 | 1 1 1 . Scrap Searched . | . . . . Spaces Dug . | . . . . Terrain Destroyed . | . . . . Melee . | . . . . Projectile . | . . . . AOE . | . . . . Terrain Rammed . | . . . . Walls Destroyed . | . . . . Machines Disabled . | . . . . Actions | -11 -10 -10 -9 --------- Run | Yrd Mat Min Mat Total 261 | 51 21 51 138 Wait 21 | 1 . . 20 Move 203 | 40 19 44 100 Hop . | . . . . Pick Up 5 | 1 2 1 1 Fast Attach 11 | 6 . 3 2 Attach 2 | . . . 2 Detach . | . . . . Swap . | . . . . Drop 1 | . . 1 . Fire 13 | 3 . 2 8 Melee 2 | . . . 2 Ram 3 | . . . 3 Kick . | . . . . Crush . | . . . . Escape Stasis . | . . . . Rewire . | . . . . Trap . | . . . . Miscellaneous . | . . . . Route ------- -11/Scrapyard -10/Materials -10/Mines -9/Materials History --------- Turn | Location | Event 25 | -11/Scrapyard | Discovered new exit (range 15) 67 | -11/Scrapyard | Entered Materials 67 | -10/Materials | Discovered new exit (range 8) 92 | -10/Materials | Entered Mines 93 | -10/Mines | Assembled infested the area 117 | -10/Mines | Discovered new exit (range 11) 152 | -10/Mines | Entered Materials 152 | -9/Materials | Evolved 2 slots: Propulsion x2 250 | -9/Materials | Lost 7 parts (1p3n1u2w) 257 | -9/Materials | Core integrity fell below 50% 280 | -9/Materials | Core integrity fell below 20% 307 | -9/Materials | Destroyed by G-34 Mercenary with Small Laser Last Messages --------------- 00249_ U-05 Engineer destroyed. 00249_ EMP Trap short circuited. 00249_ A bubble of electromagnetic force engulfs the area. 00256_ Triggered EMP Trap. 00256_ A bubble of electromagnetic force engulfs the area. 00266_ Triggered EMP Trap. 00266_ A bubble of electromagnetic force engulfs the area. 00267_ Sml. Storage Unit destroyed. 00267_ Slammed into L-31 Rogue. 00267_ L-31 Rogue knocked back. 00268_ Slammed into L-31 Rogue. 00269_ L-31 Rogue destroyed. [Achievement: Fist Fight] 00270_ Acquired 60 matter. 00271_ Acquired Katana. 00272_ Acquired Imp. Aluminum Leg. 00290_ Acquired Great Maul. 00301_ Imp. Aluminum Leg destroyed. 00302_ Katana follow-up attack on G-34 Mercenary. 00305_ G-34 Mercenary knocked back. Map ----- +----------------------------------------------------+ | ?????????????????????????????????????????????????? | | ?????????????????????????????????????????????????? | | ?????????????????????????????????????????????????? | | ?????????????????????????????????????????????????? | | ?????????????????????????????????????????????????? | | ?????????????????????????????????######+##???????? | | ?????????????????????????????????? #???????? | | ??????????????????????????????????# #???????? | | ??????????????????????????????????# #???????? | | ??????????????????????????????????# #???????? | | ???????????????????????????????#### #???????? | | ???????????????????????????????# ! #???????? | | ???????????????????????????????# #???????? | | ???????????????????????????????# #?###???? | | ???????????????????????????????# ##? !##??? | | ???????????????????????######### = #?? !#??? | | ???????????????????????# %### !#??? | | ???????????????????????# !#??? | | ???????????????????????# !#??? | | ???????????????????????# "" !##??? | | ???????????????????##### "" ######## | | ???????????????????#== T" #? # | | ???????????????????#== """ "" # # | | ???????????????????#// g g""""" "" # # | | ???????????????????#/ """"" + !!!# | | ???????????????????#// @""""" # !! # | | ???????????????????#// """ # !! # | | ???????????????????##### #?###### | | ???????????????????????# #??????? | | ???????????????????????# #??????? | | ???????????????????????#############+## ######## | | ???????????????????????????????# # # !* # | | ???????????????????????????????# # # ** # | | ???????????????????????????????# """# # * # | | ???????????????????????????????# """# / # | | ???????????????????????????????# """# # # | | ???????????????????????????????# # # # | | ???????????????????????????????################### | | ?????????????????????????????????????????????????? | | ?????????????????????????????????????????????????? | | ?????????????????????????????????????????????????? | | ?????????????????????????????????????????????????? | | ?????????????????????????????????????????????????? | | ?????????????????????????????????????????????????? | | | | | | | | | | | | | +----------------------------------------------------+ Best States ------------- Heat Dissipation 28 Energy Generation 10 Energy Capacity 250 Matter Stores 290 Matter Capacity 300 Sight Range 16 Terrain Scan Density 10 Evasion (%) 55 Item Schematics ----------------- None Robot Schematics ------------------ None Fabricated ------------ Nothing Alien Tech Used ----------------- None Achievements -------------- Fist Fight Challenges ------------ None Game ------ Seed MobileRegenerativeLeg Manual? 0 Play Time 00:05:56 Cumulative 121.7 hours Start 2024.04.30 @ 19:04:13 End 2024.04.30 @ 19:08:13 Sessions 1 Manual Loads 0 Difficulty Rogue Special Mode None Game No. 54 Rogue 54 Adventurer 0 Explorer 0 Win Type - Total 0 Types 0/0/0/0/0/0/0/0/0 Lore% 45 Gallery% 59 Achievement% 45 Wizard Run 0 Options --------- Layout 0 ASCII 1 Keyboard 0 Movement Mouse Keybinds 0 Fullscreen 2 Font 18/Terminus Map View 76x50 Zoom Use 0% Tactical HUD 1 Map Filters NONE Filters NONE Steam 1 RUN: 605657b7-14d2-4e2c-805a-112a0eaa6507